[Event "RUS-ch Men Blitz 2019"]
[Site "Sochi"]
[Date "2019.10.17"]
[Round "11.25"]
[White "Samusenko, Maksim"]
[Black "Dashko, Andrey"]
[Result "0-1"]
[ECO "A45"]
[WhiteElo "2445"]
[BlackElo "2219"]
[Annotator "NA"]
[PlyCount "74"]
[EventDate "2019.10.17"]
[EventType "swiss"]
[EventCountry "RUS"]
[SourceTitle "playchess.com"]
[Source "ChessBase"]
[SourceQuality "1"]
[TimeControl "180+2"]

1. d4 {[%emt 0:00:00]} Nf6 {[%emt 0:00:00]} 2. Bf4 {[%emt 0:00:00]} c5 {[%emt 0:00:03]} 3. e3 {[%emt 0:00:01]} e6 {[%emt 0:00:02]} 4. c3 {[%emt 0:00:03]} b6 {[%emt 0:00:02]} 5. Nd2 {[%emt 0:00:02]} Bb7 {[%emt 0:00:01]} 6. Ngf3 {[%emt 0:00:02]} Be7 {[%emt 0:00:01]} 7. h3 {[%emt 0:00:01]} O-O {[%emt 0:00:02]} 8. Bd3 {[%emt 0:00:01]} d6 {[%emt 0:00:01]} 9. O-O {[%emt 0:00:03]} Nbd7 {[%emt 0:00:02]} 10. Qe2 {[%emt 0:00:06]} Re8 {[%emt 0:00:07]} 11. Bh2 {[%emt 0:00:04]} Nf8 {[%emt 0:00:02]} 12. e4 {[%emt 0:00:10]} Ng6 {[%emt 0:00:02]} 13. Rad1 {[%emt 0:00:08]} Qc8 {[%emt 0:00:02]} 14. dxc5 {[%emt 0:00:14]} dxc5 {[%emt 0:00:10]} 15. Nc4 {[%emt 0:00:07]} Rd8 {[%emt 0:00:04]} 16. a4 {[%emt 0:00:07]} Bc6 {[%emt 0:00:12]} 17. b3 {[%emt 0:00:06]} Qb7 {[%emt 0:00:02]} 18. Ncd2 {[%emt 0:00:30]} c4 {[%emt 0:00:20]} 19. Nxc4 {[%emt 0:00:29]} Nxe4 {[%emt 0:00:18]} 20. Qc2 {[%emt 0:00:09]} Nf6 {[%emt 0:00:37]} 21. Be2 {[%emt 0:00:03]} Rxd1 {[%emt 0:00:17]} 22. Rxd1 {[%emt 0:00:01]} Rc8 {[%emt 0:00:02]} 23. Nce5 {[%emt 0:00:35]} Nxe5 {[%emt 0:00:18]} 24. Bxe5 {[%emt 0:00:02]} Be4 {[%emt 0:00:01]} 25. Qd2 {[%emt 0:00:05]} h6 {[%emt 0:00:04]} 26. c4 {[%emt 0:00:06]} Rd8 {[%emt 0:00:15]} 27. Qc1 {[%emt 0:00:02]} Rxd1+ {[%emt 0:00:08]} 28. Qxd1 {[%emt 0:00:00]} Nd7 {[%emt 0:00:02]} 29. Bf4 {[%emt 0:00:07]} a5 {[%emt 0:00:03]} 30. Ne1 {[%emt 0:00:15]} Nc5 {[%emt 0:00:01]} 31. Be3 {[%emt 0:00:04]} Bf6 {[%emt 0:00:19]} 32. f3 {[%emt 0:00:07]} Bc6 {[%emt 0:00:03]} 33. Nd3 {[%emt 0:00:01]} Nd7 {[%emt 0:00:06]} 34. Bf1 {[%emt 0:00:04]} g5 {[%emt 0:00:09]} 35. Nf2 {[%emt 0:00:02]} Nc5 {[%emt 0:00:05]} 36. Qc2 {[%emt 0:00:04]} Qc7 {[%emt 0:00:03]} 37. Nd3 {[%emt 0:00:02]} Be7 {[%emt 0:00:08]} 0-1

[Event "RUS-ch Men Blitz 2019"]
[Site "Sochi"]
[Date "2019.10.17"]
[Round "11.26"]
[White "Bryakin, Mikhail"]
[Black "Skvortsov, Andrei"]
[Result "1-0"]
[ECO "D02"]
[WhiteElo "2440"]
[BlackElo "2139"]
[Annotator "NA"]
[PlyCount "105"]
[EventDate "2019.10.17"]
[EventType "swiss"]
[EventCountry "RUS"]
[SourceTitle "playchess.com"]
[Source "ChessBase"]
[SourceQuality "1"]
[TimeControl "180+2"]

1. d4 {[%emt 0:00:00]} d5 {[%emt 0:00:00]} 2. Nf3 {[%emt 0:00:00]} Nf6 {[%emt 0:00:00]} 3. c4 {[%emt 0:00:01]} c6 {[%emt 0:00:01]} 4. g3 {[%emt 0:00:02]} dxc4 {[%emt 0:00:07]} 5. Bg2 {[%emt 0:00:01]} g6 {[%emt 0:00:03]} 6. a4 {[%emt 0:00:05]} a5 {[%emt 0:00:05]} 7. Na3 {[%emt 0:00:02]} Bg7 {[%emt 0:00:02]} 8. Nxc4 {[%emt 0:00:02]} O-O {[%emt 0:00:03]} 9. O-O {[%emt 0:00:02]} Nd5 {[%emt 0:00:06]} 10. e4 {[%emt 0:00:04]} Nb4 {[%emt 0:00:00]} 11. h4 {[%emt 0:00:09]} Bg4 {[%emt 0:00:01]} 12. Be3 {[%emt 0:00:03]} b5 {[%emt 0:00:09]} 13. Na3 {[%emt 0:00:06]} e5 {[%emt 0:00:12]} 14. dxe5 {[%emt 0:00:15]} Qxd1 {[%emt 0:00:05]} 15. Raxd1 {[%emt 0:00:02]} bxa4 {[%emt 0:00:06]} 16. Nc4 {[%emt 0:00:09]} Nd7 {[%emt 0:00:09]} 17. Bd4 {[%emt 0:00:19]} Rfb8 {[%emt 0:00:13]} 18. Bc3 {[%emt 0:00:06]} Be6 {[%emt 0:00:02]} 19. Nfd2 {[%emt 0:00:17]} Nc5 {[%emt 0:00:04]} 20. f4 Na2 {[%emt 0:00:10]} 21. Bd4 {[%emt 0:00:08]} Nb3 {[%emt 0:00:04]} 22. Be3 {[%emt 0:00:14]} Nxd2 {[%emt 0:00:03]} 23. Nxd2 {[%emt 0:00:02]} Rxb2 {[%emt 0:00:04]} 24. Nb1 {[%emt 0:00:15]} Bg4 {[%emt 0:00:06]} 25. Rd2 {[%emt 0:00:04]} Rxd2 {[%emt 0:00:11]} 26. Nxd2 {[%emt 0:00:01]} Nc3 {[%emt 0:00:07]} 27. Ra1 {[%emt 0:00:05]} Bf8 {[%emt 0:00:06]} 28. Nc4 {[%emt 0:00:06]} Ra6 {[%emt 0:00:19]} 29. Nd6 {[%emt 0:00:01]} Be6 {[%emt 0:00:26]} 30. Bc5 {[%emt 0:00:08]} Bb3 {[%emt 0:00:05]} 31. f5 {[%emt 0:00:08]} Ra8 {[%emt 0:00:10]} 32. Kf2 {[%emt 0:00:06]} Bg7 {[%emt 0:00:04]} 33. f6 {[%emt 0:00:12]} Bh6 {[%emt 0:00:08]} 34. Bf1 {[%emt 0:00:03]} Bf8 {[%emt 0:00:07]} 35. Ke3 {[%emt 0:00:03]} Rb8 {[%emt 0:00:14]} 36. Bd3 {[%emt 0:00:10]} Nb5 {[%emt 0:00:03]} 37. Kf4 {[%emt 0:00:14]} Rd8 {[%emt 0:00:01]} 38. Bxb5 {[%emt 0:00:15]} Bxd6 {[%emt 0:00:01]} 39. exd6 {[%emt 0:00:09]} cxb5 {[%emt 0:00:01]} 40. e5 {[%emt 0:00:03]} Be6 {[%emt 0:00:08]} 41. Ke4 {[%emt 0:00:05]} h6 {[%emt 0:00:03]} 42. Kd4 {[%emt 0:00:01]} Bc4 {[%emt 0:00:02]} 43. Bb6 {[%emt 0:00:02]} Rd7 {[%emt 0:00:03]} 44. Bxa5 {[%emt 0:00:01]} Kh7 {[%emt 0:00:04]} 45. Kc5 {[%emt 0:00:02]} Ra7 {[%emt 0:00:03]} 46. Bb6 {[%emt 0:00:01]} Rd7 {[%emt 0:00:02]} 47. Ba5 {[%emt 0:00:01]} g5 {[%emt 0:00:02]} 48. h5 {[%emt 0:00:02]} Be2 {[%emt 0:00:01]} 49. Kc6 {[%emt 0:00:00]} Bg4 {[%emt 0:00:03]} 50. Kxb5 {[%emt 0:00:02]} Bxh5 {[%emt 0:00:01]} 51. Kc6 {[%emt 0:00:00]} Bg4 {[%emt 0:00:01]} 52. Rxa4 {[%emt 0:00:01]} Kg6 {[%emt 0:00:01]} 53. Rxg4 {[%emt 0:00:01]} 1-0

[Event "RUS-ch Men Blitz 2019"]
[Site "Sochi"]
[Date "2019.10.17"]
[Round "11.27"]
[White "Eraschenkov, Denis"]
[Black "Cherenkov, Andrey"]
[Result "1-0"]
[ECO "B14"]
[WhiteElo "2382"]
[BlackElo "2221"]
[Annotator "NA"]
[PlyCount "99"]
[EventDate "2019.10.17"]
[EventType "swiss"]
[EventCountry "RUS"]
[SourceTitle "playchess.com"]
[Source "ChessBase"]
[SourceQuality "1"]
[TimeControl "180+2"]

1. e4 {[%emt 0:00:00]} c6 {[%emt 0:00:04]} 2. d4 {[%emt 0:00:05]} d5 {[%emt 0:00:01]} 3. exd5 {[%emt 0:00:01]} cxd5 {[%emt 0:00:01]} 4. c4 {[%emt 0:00:02]} Nf6 {[%emt 0:00:01]} 5. Nc3 {[%emt 0:00:01]} g6 {[%emt 0:00:01]} 6. cxd5 {[%emt 0:00:02]} Bg7 {[%emt 0:00:02]} 7. Qb3 {[%emt 0:00:02]} O-O {[%emt 0:00:02]} 8. Be2 {[%emt 0:00:02]} Qb6 {[%emt 0:00:04]} 9. Bf3 {[%emt 0:00:13]} Qxb3 {[%emt 0:00:04]} 10. axb3 {[%emt 0:00:01]} Na6 {[%emt 0:00:01]} 11. Nge2 {[%emt 0:00:06]} Nb4 {[%emt 0:00:02]} 12. O-O {[%emt 0:00:12]} Rd8 {[%emt 0:00:02]} 13. d6 {[%emt 0:00:02]} exd6 {[%emt 0:00:25]} 14. Nb5 {[%emt 0:00:41]} Be6 {[%emt 0:00:27]} 15. Nc7 {[%emt 0:00:07]} Nc2 {[%emt 0:00:28]} 16. Ra5 {[%emt 0:00:18]} b6 {[%emt 0:00:11]} 17. Ra6 {[%emt 0:00:14]} Rac8 {[%emt 0:00:19]} 18. Nxe6 {[%emt 0:00:06]} fxe6 {[%emt 0:00:02]} 19. Rxa7 {[%emt 0:00:01]} d5 {[%emt 0:00:38]} 20. Bf4 {[%emt 0:00:24]} Ne8 {[%emt 0:00:09]} 21. Bg4 {[%emt 0:00:14]} Rc6 {[%emt 0:00:06]} 22. Re7 {[%emt 0:00:16]} Nxd4 {[%emt 0:00:13]} 23. Nxd4 {[%emt 0:00:02]} Bxd4 {[%emt 0:00:01]} 24. Rxe6 {[%emt 0:00:06]} Rxe6 {[%emt 0:00:04]} 25. Bxe6+ {[%emt 0:00:01]} Kg7 {[%emt 0:00:01]} 26. Rd1 {[%emt 0:00:06]} Bxb2 {[%emt 0:00:12]} 27. Rxd5 {[%emt 0:00:01]} Rxd5 {[%emt 0:00:03]} 28. Bxd5 {[%emt 0:00:02]} Bd4 {[%emt 0:00:05]} 29. g3 {[%emt 0:00:04]} Nf6 {[%emt 0:00:00]} 30. Bf3 {[%emt 0:00:05]} Kf7 {[%emt 0:00:01]} 31. Kg2 {[%emt 0:00:02]} Ke6 {[%emt 0:00:01]} 32. h4 {[%emt 0:00:04]} Nd5 {[%emt 0:00:05]} 33. Bd2 {[%emt 0:00:01]} b5 {[%emt 0:00:04]} 34. Be4 {[%emt 0:00:03]} Nc3 {[%emt 0:00:01]} 35. Bd3 {[%emt 0:00:04]} b4 {[%emt 0:00:03]} 36. h5 {[%emt 0:00:03]} gxh5 {[%emt 0:00:01]} 37. Bxh7 {[%emt 0:00:01]} Bc5 {[%emt 0:00:02]} 38. Bg6 {[%emt 0:00:02]} Nd1 {[%emt 0:00:03]} 39. Be1 {[%emt 0:00:03]} h4 {[%emt 0:00:05]} 40. gxh4 {[%emt 0:00:02]} Nb2 {[%emt 0:00:01]} 41. Bc2 {[%emt 0:00:03]} Kd5 {[%emt 0:00:03]} 42. h5 {[%emt 0:00:02]} Bf8 {[%emt 0:00:01]} 43. Bd2 {[%emt 0:00:01]} Kd4 {[%emt 0:00:02]} 44. h6 {[%emt 0:00:02]} Nd3 {[%emt 0:00:02]} 45. Bxd3 {[%emt 0:00:02]} Kxd3 {[%emt 0:00:00]} 46. h7 {[%emt 0:00:01]} Bg7 {[%emt 0:00:04]} 47. Bxb4 {[%emt 0:00:02]} Kc2 {[%emt 0:00:00]} 48. Bd6 {[%emt 0:00:03]} Kxb3 {[%emt 0:00:00]} 49. Kf3 {[%emt 0:00:01]} Kc4 {[%emt 0:00:00]} 50. Ke4 {[%emt 0:00:01]} 1-0

[Event "RUS-ch Men Blitz 2019"]
[Site "Sochi"]
[Date "2019.10.17"]
[Round "11.28"]
[White "Zakaryan, David"]
[Black "Bespalov, Konstantin"]
[Result "1/2-1/2"]
[ECO "A40"]
[WhiteElo "2338"]
[BlackElo "2258"]
[Annotator "NA"]
[PlyCount "107"]
[EventDate "2019.10.17"]
[EventType "swiss"]
[EventCountry "RUS"]
[SourceTitle "playchess.com"]
[Source "ChessBase"]
[SourceQuality "1"]
[TimeControl "180+2"]

1. d4 {[%emt 0:00:00]} e5 {[%emt 0:00:00]} 2. dxe5 d6 3. Nc3 {[%emt 0:00:02]} Nc6 {[%emt 0:00:00]} 4. Nf3 {[%emt 0:00:00]} Bg4 {[%emt 0:00:01]} 5. Bg5 {[%emt 0:00:06]} Qd7 {[%emt 0:00:00]} 6. e3 {[%emt 0:00:06]} dxe5 {[%emt 0:00:02]} 7. Qxd7+ {[%emt 0:00:01]} Bxd7 {[%emt 0:00:01]} 8. Nb5 {[%emt 0:00:05]} Bb4+ {[%emt 0:00:14]} 9. c3 {[%emt 0:00:00]} Ba5 {[%emt 0:00:00]} 10. a4 {[%emt 0:00:09]} f6 {[%emt 0:00:03]} 11. Bh4 {[%emt 0:00:01]} a6 {[%emt 0:00:16]} 12. Na3 {[%emt 0:00:02]} O-O-O {[%emt 0:00:04]} 13. Nc4 {[%emt 0:00:02]} Bb6 {[%emt 0:00:02]} 14. Nxb6+ {[%emt 0:00:04]} cxb6 {[%emt 0:00:01]} 15. e4 {[%emt 0:00:02]} Nge7 {[%emt 0:00:07]} 16. Be2 {[%emt 0:00:07]} Be6 {[%emt 0:00:03]} 17. Nd2 {[%emt 0:00:14]} Kc7 {[%emt 0:00:11]} 18. O-O-O {[%emt 0:00:15]} Rd7 {[%emt 0:00:12]} 19. Nc4 {[%emt 0:00:03]} Rhd8 {[%emt 0:00:08]} 20. Bg3 {[%emt 0:00:08]} Ng6 {[%emt 0:00:19]} 21. Kc2 {[%emt 0:00:06]} Nf4 {[%emt 0:00:16]} 22. Bxf4 {[%emt 0:00:06]} exf4 {[%emt 0:00:01]} 23. Rxd7+ {[%emt 0:00:07]} Rxd7 {[%emt 0:00:01]} 24. g3 {[%emt 0:00:12]} Bxc4 {[%emt 0:00:11]} 25. Bxc4 {[%emt 0:00:02]} Ne5 {[%emt 0:00:01]} 26. Be6 {[%emt 0:00:13]} Rd6 {[%emt 0:00:10]} 27. gxf4 {[%emt 0:00:08]} Rxe6 {[%emt 0:00:02]} 28. fxe5 {[%emt 0:00:01]} Rxe5 {[%emt 0:00:00]} 29. Rg1 {[%emt 0:00:18]} g6 {[%emt 0:00:02]} 30. Kd3 {[%emt 0:00:10]} Rh5 {[%emt 0:00:05]} 31. Rg2 {[%emt 0:00:00]} Kd6 {[%emt 0:00:01]} 32. Ke3 {[%emt 0:00:03]} b5 {[%emt 0:00:06]} 33. axb5 {[%emt 0:00:10]} Rxb5 {[%emt 0:00:02]} 34. b4 {[%emt 0:00:01]} Rh5 {[%emt 0:00:01]} 35. f3 {[%emt 0:00:01]} Ke5 {[%emt 0:00:10]} 36. c4 {[%emt 0:00:05]} Kd6 {[%emt 0:00:13]} 37. Rd2+ {[%emt 0:00:04]} Kc6 {[%emt 0:00:01]} 38. Kf4 {[%emt 0:00:06]} a5 {[%emt 0:00:08]} 39. bxa5 {[%emt 0:00:09]} Rxa5 {[%emt 0:00:01]} 40. Rd8 {[%emt 0:00:05]} Rh5 {[%emt 0:00:10]} 41. Rf8 {[%emt 0:00:05]} Rxh2 {[%emt 0:00:04]} 42. Rxf6+ {[%emt 0:00:02]} Kc5 {[%emt 0:00:00]} 43. Rf7 {[%emt 0:00:00]} Kxc4 {[%emt 0:00:06]} 44. Rxb7 {[%emt 0:00:02]} Kc5 {[%emt 0:00:01]} 45. Ke5 {[%emt 0:00:03]} Rh5+ {[%emt 0:00:03]} 46. Ke6 {[%emt 0:00:03]} Kc6 {[%emt 0:00:12]} 47. Ra7 {[%emt 0:00:03]} Rh3 {[%emt 0:00:07]} 48. f4 {[%emt 0:00:02]} Rf3 {[%emt 0:00:03]} 49. Ke5 {[%emt 0:00:02]} h5 {[%emt 0:00:02]} 50. Rg7 {[%emt 0:00:01]} Rg3 {[%emt 0:00:01]} 51. f5 {[%emt 0:00:01]} h4 {[%emt 0:00:03]} 52. Kf4 {[%emt 0:00:06]} gxf5 {[%emt 0:00:07]} 53. Rh7 {[%emt 0:00:09]} fxe4 {[%emt 0:00:05]} 54. Kxe4 1/2-1/2

[Event "RUS-ch Men Blitz 2019"]
[Site "Sochi"]
[Date "2019.10.17"]
[Round "11.29"]
[White "Glek, Igor"]
[Black "Chos, Alexey"]
[Result "0-1"]
[ECO "B50"]
[WhiteElo "2467"]
[BlackElo "2296"]
[Annotator "ChessBase"]
[PlyCount "104"]
[EventDate "2019.10.17"]
[EventType "swiss"]
[EventCountry "RUS"]
[SourceTitle "playchess.com"]
[Source "ChessBase"]
[SourceQuality "1"]
[TimeControl "180+2"]

1. e4 {[%emt 0:00:00]} c5 {[%emt 0:00:00]} 2. Nf3 {[%emt 0:00:00]} d6 {[%emt 0:00:00]} 3. c3 {[%emt 0:00:04]} e6 {[%emt 0:00:00]} 4. d4 {[%emt 0:00:01]} d5 {[%emt 0:00:03]} 5. e5 {[%emt 0:00:02]} Nc6 {[%emt 0:00:02]} 6. Bd3 {[%emt 0:00:03]} cxd4 {[%emt 0:00:03]} 7. cxd4 {[%emt 0:00:01]} Qb6 {[%emt 0:00:00]} 8. Nc3 {[%emt 0:00:06]} Bd7 {[%emt 0:00:01]} 9. Na4 {[%emt 0:00:05]} Qa5+ {[%emt 0:00:16]} 10. Nc3 {[%emt 0:00:02]} Qb6 {[%emt 0:00:07]} 11. Be2 {[%emt 0:00:33]} f6 {[%emt 0:00:14]} 12. O-O {[%emt 0:00:16]} Nge7 {[%emt 0:00:04]} 13. exf6 {[%emt 0:00:10]} gxf6 {[%emt 0:00:02]} 14. Na4 {[%emt 0:00:05]} Qc7 {[%emt 0:00:06]} 15. Nc5 {[%emt 0:00:16]} Nf5 {[%emt 0:00:06]} 16. Nxd7 {[%emt 0:00:05]} Qxd7 {[%emt 0:00:01]} 17. Kh1 {[%emt 0:00:03]} Rg8 {[%emt 0:00:04]} 18. Re1 {[%emt 0:00:12]} O-O-O {[%emt 0:00:03]} 19. Bb5 {[%emt 0:00:06]} Nd6 {[%emt 0:00:23]} 20. Bf1 {[%emt 0:00:06]} Ne4 {[%emt 0:00:02]} 21. Be3 {[%emt 0:00:01]} Bh6 {[%emt 0:00:02]} 22. Qc2 {[%emt 0:00:18]} Bxe3 {[%emt 0:00:05]} 23. Rxe3 {[%emt 0:00:07]} Kb8 {[%emt 0:00:01]} 24. a3 {[%emt 0:00:03]} Rc8 {[%emt 0:00:03]} 25. Qe2 {[%emt 0:00:02]} Qf7 {[%emt 0:00:12]} 26. Rd1 {[%emt 0:00:02]} h5 {[%emt 0:00:06]} 27. Ng1 {[%emt 0:00:12]} f5 {[%emt 0:00:10]} 28. Rh3 {[%emt 0:00:16]} Ka8 {[%emt 0:00:17]} 29. Rhd3 {[%emt 0:00:23]} Qf6 {[%emt 0:00:05]} 30. f3 {[%emt 0:00:04]} Nd6 {[%emt 0:00:05]} 31. Re3 {[%emt 0:00:05]} Nxd4 {[%emt 0:00:03]} 32. Qd2 {[%emt 0:00:04]} e5 {[%emt 0:00:06]} 33. f4 {[%emt 0:00:05]} Ne4 {[%emt 0:00:01]} 34. Rxe4 {[%emt 0:00:01]} dxe4 {[%emt 0:00:19]} 35. fxe5 {[%emt 0:00:02]} Qxe5 {[%emt 0:00:04]} 36. Qxd4 {[%emt 0:00:00]} Qxd4 {[%emt 0:00:02]} 37. Rxd4 {[%emt 0:00:01]} Rc1 {[%emt 0:00:01]} 38. Be2 {[%emt 0:00:07]} h4 {[%emt 0:00:02]} 39. h3 {[%emt 0:00:01]} Rc2 {[%emt 0:00:02]} 40. Bf1 {[%emt 0:00:03]} Rf2 {[%emt 0:00:02]} 41. Rd1 {[%emt 0:00:01]} Rxb2 {[%emt 0:00:02]} 42. a4 {[%emt 0:00:02]} Kb8 {[%emt 0:00:01]} 43. Bc4 {[%emt 0:00:05]} Rgxg2 {[%emt 0:00:03]} 44. Ne2 {[%emt 0:00:01]} Rgxe2 {[%emt 0:00:02]} 45. Bxe2 {[%emt 0:00:01]} Rxe2 46. Rf1 Re3 {[%emt 0:00:05]} 47. Rxf5 {[%emt 0:00:03]} Rxh3+ {[%emt 0:00:01]} 48. Kg2 {[%emt 0:00:00]} Rg3+ {[%emt 0:00:01]} 49. Kh2 {[%emt 0:00:01]} e3 {[%emt 0:00:01]} 50. Rf7 {[%emt 0:00:01]} a5 {[%emt 0:00:01]} 51. Re7 {[%emt 0:00:01]} Rg4 {[%emt 0:00:02]} 52. Rxe3 {[%emt 0:00:03]} Rxa4 {[%emt 0:00:01]} 0-1

[Event "RUS-ch Men Blitz 2019"]
[Site "Sochi"]
[Date "2019.10.17"]
[Round "11.30"]
[White "Chekletsov, Ilya"]
[Black "Utnasunov, Alexander"]
[Result "0-1"]
[ECO "D11"]
[WhiteElo "2377"]
[BlackElo "2442"]
[Annotator "NA"]
[PlyCount "90"]
[EventDate "2019.10.17"]
[EventType "swiss"]
[EventCountry "RUS"]
[SourceTitle "playchess.com"]
[Source "ChessBase"]
[SourceQuality "1"]
[TimeControl "180+2"]

1. d4 {[%emt 0:00:00]} d5 {[%emt 0:00:00]} 2. c4 {[%emt 0:00:02]} c6 {[%emt 0:00:00]} 3. Nf3 {[%emt 0:00:01]} Nf6 {[%emt 0:00:00]} 4. Qc2 {[%emt 0:00:00]} g6 {[%emt 0:00:09]} 5. Bf4 {[%emt 0:00:01]} Bf5 {[%emt 0:00:15]} 6. Qb3 {[%emt 0:00:01]} Qb6 {[%emt 0:00:07]} 7. c5 {[%emt 0:00:02]} Qxb3 {[%emt 0:00:01]} 8. axb3 {[%emt 0:00:01]} Bxb1 {[%emt 0:00:04]} 9. Rxb1 {[%emt 0:00:01]} Ne4 {[%emt 0:00:10]} 10. e3 {[%emt 0:00:09]} Nd7 {[%emt 0:00:03]} 11. Bd3 {[%emt 0:00:02]} f5 {[%emt 0:00:14]} 12. b4 {[%emt 0:00:05]} a6 {[%emt 0:00:01]} 13. Ne5 {[%emt 0:00:13]} Bg7 {[%emt 0:00:27]} 14. Ke2 {[%emt 0:00:41]} e6 {[%emt 0:00:22]} 15. f3 {[%emt 0:00:23]} Nef6 {[%emt 0:00:21]} 16. g4 {[%emt 0:00:01]} fxg4 {[%emt 0:00:29]} 17. fxg4 {[%emt 0:00:02]} Nxe5 {[%emt 0:00:02]} 18. Bxe5 {[%emt 0:00:01]} O-O {[%emt 0:00:05]} 19. h3 {[%emt 0:00:17]} Nd7 {[%emt 0:00:03]} 20. Bd6 {[%emt 0:00:03]} Rf7 {[%emt 0:00:01]} 21. Rhf1 {[%emt 0:00:01]} Rxf1 {[%emt 0:00:03]} 22. Rxf1 {[%emt 0:00:02]} Re8 {[%emt 0:00:03]} 23. b3 {[%emt 0:00:26]} e5 {[%emt 0:00:01]} 24. dxe5 {[%emt 0:00:01]} Bxe5 {[%emt 0:00:04]} 25. Bxe5 {[%emt 0:00:06]} Rxe5 {[%emt 0:00:05]} 26. Kd2 {[%emt 0:00:04]} Kg7 {[%emt 0:00:01]} 27. Rf3 {[%emt 0:00:09]} Nf6 {[%emt 0:00:01]} 28. Kc3 {[%emt 0:00:03]} Ne4+ {[%emt 0:00:04]} 29. Kd4 {[%emt 0:00:32]} Re7 {[%emt 0:00:01]} 30. Bc2 {[%emt 0:00:01]} Nd2 {[%emt 0:00:21]} 31. Rf2 {[%emt 0:00:02]} Ne4 {[%emt 0:00:01]} 32. Rf4 {[%emt 0:00:09]} Ng5 {[%emt 0:00:04]} 33. Rf1 {[%emt 0:00:10]} Nxh3 {[%emt 0:00:02]} 34. e4 {[%emt 0:00:00]} dxe4 {[%emt 0:00:03]} 35. Bxe4 {[%emt 0:00:02]} Ng5 {[%emt 0:00:01]} 36. Bd3 {[%emt 0:00:01]} Rd7+ {[%emt 0:00:04]} 37. Kc3 {[%emt 0:00:02]} Nf7 {[%emt 0:00:08]} 38. Be4 {[%emt 0:00:04]} Ne5 {[%emt 0:00:02]} 39. Rf4 {[%emt 0:00:06]} Re7 {[%emt 0:00:02]} 40. Bc2 {[%emt 0:00:04]} Nd7 {[%emt 0:00:04]} 41. Rd4 {[%emt 0:00:02]} Nf6 {[%emt 0:00:01]} 42. Kc4 {[%emt 0:00:04]} Nd5 {[%emt 0:00:01]} 43. Be4 {[%emt 0:00:02]} Ne3+ {[%emt 0:00:01]} 44. Kd3 {[%emt 0:00:01]} Nxg4 {[%emt 0:00:01]} 45. Bxc6 {[%emt 0:00:02]} Ne5+ {[%emt 0:00:00]} 0-1

[Event "RUS-ch Men Blitz 2019"]
[Site "Sochi"]
[Date "2019.10.17"]
[Round "11.31"]
[White "Gogolev, Artem"]
[Black "Faizrakhmanov, Ramil"]
[Result "0-1"]
[ECO "E01"]
[WhiteElo "2339"]
[BlackElo "2434"]
[Annotator "NA"]
[PlyCount "74"]
[EventDate "2019.10.17"]
[EventType "swiss"]
[EventCountry "RUS"]
[SourceTitle "playchess.com"]
[Source "ChessBase"]
[SourceQuality "1"]
[TimeControl "180+2"]

1. d4 Nf6 2. c4 e6 3. g3 d5 4. Bg2 dxc4 5. Qa4+ c6 6. Qxc4 b5 7. Qc2 Bb7 8. Nf3 Nbd7 9. O-O c5 10. Rd1 Rc8 11. dxc5 Bxc5 12. Qb3 Qb6 13. e3 O-O 14. Nc3 a6 15. Bd2 Be7 16. Be1 Nc5 17. Qc2 b4 18. Na4 Nxa4 19. Qxa4 Bc6 20. Qb3 Bd5 21. Qa4 Qb7 22. Nh4 Ne4 23. Rd4 Bxh4 24. Rxb4 Qa8 25. Bxe4 Bxe4 26. Rxe4 Bf6 27. Rb1 Rfd8 28. Rc4 h5 29. Ba5 Rd5 30. Bc3 Bxc3 31. bxc3 Rdc5 32. Rxc5 Rxc5 33. Qf4 Rc8 34. c4 g6 35. c5 Qd5 36. Rc1 Rxc5 37. Rxc5 Qxc5 0-1

[Event "RUS-ch Men Blitz 2019"]
[Site "Sochi"]
[Date "2019.10.17"]
[Round "12.1"]
[White "Ponkratov, Pavel"]
[Black "Grachev, Boris"]
[Result "1/2-1/2"]
[ECO "B40"]
[WhiteElo "2621"]
[BlackElo "2621"]
[Annotator "RC"]
[PlyCount "81"]
[EventDate "2019.10.17"]
[EventType "swiss"]
[EventCountry "RUS"]
[SourceTitle "playchess.com"]
[Source "ChessBase"]
[SourceQuality "1"]
[TimeControl "180+2"]

1. e4 {[%emt 0:00:00]} c5 {[%emt 0:00:00]} 2. Nf3 {[%emt 0:00:01]} e6 {[%emt 0:00:00]} 3. c3 {[%emt 0:00:01]} d5 {[%emt 0:00:00]} 4. e5 {[%emt 0:00:00]} d4 {[%emt 0:00:05]} 5. Bd3 {[%emt 0:00:01]} Bd7 {[%emt 0:00:04]} 6. O-O {[%emt 0:00:10]} Bc6 {[%emt 0:00:01]} 7. Re1 {[%emt 0:00:01]} Ne7 {[%emt 0:00:08]} 8. Na3 {[%emt 0:00:02]} Ng6 {[%emt 0:00:08]} 9. Nc2 {[%emt 0:00:15]} Nf4 {[%emt 0:00:11]} 10. Bf1 {[%emt 0:00:04]} d3 {[%emt 0:00:10]} 11. Ne3 {[%emt 0:00:02]} Be7 {[%emt 0:00:27]} 12. b3 {[%emt 0:00:09]} O-O {[%emt 0:00:05]} 13. Bb2 {[%emt 0:00:03]} b5 {[%emt 0:00:29]} 14. c4 {[%emt 0:00:02]} a6 {[%emt 0:00:07]} 15. Rc1 {[%emt 0:00:03]} Bb7 {[%emt 0:00:03]} 16. g3 {[%emt 0:00:05]} Ne2+ {[%emt 0:00:05]} 17. Bxe2 {[%emt 0:00:03]} dxe2 {[%emt 0:00:01]} 18. Qxe2 {[%emt 0:00:03]} Nc6 {[%emt 0:00:06]} 19. cxb5 {[%emt 0:00:08]} Nb4 {[%emt 0:00:03]} 20. Rc3 {[%emt 0:00:10]} Nxa2 {[%emt 0:00:10]} 21. Rd3 {[%emt 0:00:07]} Bxf3 {[%emt 0:00:18]} 22. Rxd8 {[%emt 0:00:05]} Bxe2 {[%emt 0:00:02]} 23. Rxa8 {[%emt 0:00:20]} Rxa8 {[%emt 0:00:01]} 24. Rxe2 {[%emt 0:00:01]} axb5 {[%emt 0:00:02]} 25. Nc2 {[%emt 0:00:22]} h5 {[%emt 0:00:07]} 26. Kf1 {[%emt 0:00:05]} c4 {[%emt 0:00:14]} 27. bxc4 {[%emt 0:00:03]} bxc4 {[%emt 0:00:01]} 28. Re4 {[%emt 0:00:12]} Rc8 {[%emt 0:00:04]} 29. Bc3 {[%emt 0:00:05]} f5 {[%emt 0:00:27]} 30. exf6 {[%emt 0:00:08]} Nxc3 {[%emt 0:00:02]} 31. dxc3 {[%emt 0:00:03]} Bxf6 {[%emt 0:00:01]} 32. Ne3 {[%emt 0:00:04]} Bxc3 {[%emt 0:00:02]} 33. Nxc4 {[%emt 0:00:00]} Rc6 {[%emt 0:00:05]} 34. Ke2 {[%emt 0:00:03]} Bf6 {[%emt 0:00:02]} 35. Ne3 {[%emt 0:00:12]} Kf7 {[%emt 0:00:01]} 36. h4 {[%emt 0:00:02]} Ra6 {[%emt 0:00:01]} 37. Ng2 {[%emt 0:00:02]} Ra2+ {[%emt 0:00:02]} 38. Kf3 {[%emt 0:00:01]} Ra3+ {[%emt 0:00:00]} 39. Re3 {[%emt 0:00:03]} Rxe3+ {[%emt 0:00:02]} 40. Kxe3 {[%emt 0:00:01]} Bd8 {[%emt 0:00:04]} 41. Nf4 1/2-1/2